lending/lending_fUSD_20250303
["ID","MTS","AMOUNT","RATE_DAILY","PERIOD"]
[355190148,1740975059327,-500.0,0.00022465,2]
[355190149,1740975059337,-528.1483054,0.00022465,2]
[355190150,1740975059346,-500.0,0.00022465,2]
[355190151,1740975059356,-500.0,0.00022465,2]
[355190152,1740975059365,-500.0,0.00022465,2]
[355190153,1740975059379,-500.0,0.00022465,2]
[355190154,1740975059388,-500.0,0.00022465,2]
[355190155,1740975059398,-500.0,0.00022465,2]
[355190156,1740975059408,-500.0,0.00022465,7]
[355190157,1740975059418,-417.06195117,0.00022465,2]
[355190158,1740975059428,-532.53461583,0.00022465,2]
[355190159,1740975059438,-500.0,0.00022465,2]
[355190160,1740975059449,-500.0,0.00022465,2]
[355190161,1740975059461,-500.0,0.00022465,2]
[355190162,1740975059472,-500.72913832,0.00022465,2]
[355190163,1740975059483,-500.0,0.00022465,2]
[355190164,1740975059493,-500.0,0.00022465,2]
[355190165,1740975059504,-489.46747106,0.00022466,2]
[355190166,1740975059514,-489.46747106,0.00022575,2]
[355190167,1740975059524,-300.0,0.00022598,6]
[355190168,1740975059534,-202.0,0.0002266,2]
[355190169,1740975059545,-489.46747106,0.00022685,2]
[355190170,1740975059555,-2581.61,0.00022738,2]
[355190171,1740975059564,-568.51,0.00022739,2]
[355190172,1740975059574,-511.0927812,0.00022739,2]
[355190173,1740975059584,-500.0,0.00022739,2]
[355190174,1740975059593,-500.0,0.00022739,2]
[355190175,1740975059603,-529.38099444,0.00022739,2]
[355190176,1740975059613,-300.0,0.00022739,2]
[355190177,1740975059624,-385.93193533,0.00022739,2]
[355190178,1740975059633,-500.0,0.00022739,2]
[355190179,1740975059642,-500.0,0.00022739,2]
[355190180,1740975059652,-522.29117013,0.00022739,2]
[355190181,1740975059662,-509.99138656,0.00022739,2]
[355190182,1740975059672,-155.104905,0.00022739,2]
[355190183,1740975059681,-152.335173,0.00022739,2]
[355190184,1740975059692,-500.0,0.00022739,2]
[355190185,1740975059702,-155.66991643,0.00022739,2]
[355190186,1740975059712,-328.88159019,0.00022739,2]
[355190187,1740975059722,-500.0,0.00022739,2]
[355190188,1740975059732,-528.9494996,0.00022739,2]
[355190189,1740975059742,-165.164605,0.00022739,2]
[355190190,1740975059752,-193.44932282,0.00022739,2]
[355190191,1740975059762,-240.31846845,0.00022739,2]
[355190192,1740975059772,-500.0,0.00022739,2]
[355190193,1740975059782,-520.12055388,0.00022739,2]
[355190194,1740975059792,-500.0,0.00022739,2]
[355190195,1740975059802,-500.0,0.00022739,2]
[355190196,1740975059812,-500.0,0.00022739,2]
[355190197,1740975059822,-531.80775316,0.00022739,2]
[355190198,1740975059831,-500.0,0.00022739,2]
[355190199,1740975059841,-500.0,0.00022739,2]
[355190200,1740975059851,-346.77384889,0.00022739,2]
[355190201,1740975059863,-500.0,0.00022739,2]
[355190202,1740975059873,-500.0,0.00022739,2]
[355190203,1740975059883,-500.0,0.00022739,2]
[355190204,1740975059893,-500.0,0.00022739,2]
[355190205,1740975059903,-500.0,0.00022739,2]
[355190206,1740975059913,-500.0,0.00022739,2]
[355190207,1740975059923,-5263.18,0.00022739,2]
[355190208,1740975059932,-500.0,0.00022739,2]
[355190209,1740975059942,-500.0,0.00022739,2]
[355190210,1740975059951,-500.0,0.00022739,2]
[355190211,1740975059961,-500.0,0.00022739,2]
[355190212,1740975059971,-571.63788971,0.00022739,2]
[355190213,1740975059980,-500.0,0.00022739,2]
[355190214,1740975059990,-500.0,0.00022739,2]
[355190215,1740975060000,-511.80841266,0.00022739,2]
[355190216,1740975060010,-500.0,0.00022739,2]
[355190217,1740975060019,-500.0,0.00022739,2]
[355190218,1740975060029,-500.0,0.00022739,2]
[355190219,1740975060039,-183.85723995,0.00022739,2]
[355190220,1740975060049,-648.51403483,0.00022739,2]
[355190221,1740975060059,-500.0,0.00022739,2]
[355190222,1740975060069,-500.0,0.00022739,2]
[355190223,1740975060079,-500.0,0.00022739,2]
[355190224,1740975060089,-347.78829662,0.00022739,2]
[355190225,1740975060099,-500.0,0.00022739,2]
[355190226,1740975060108,-500.0,0.00022739,2]
[355190227,1740975060118,-500.0,0.00022739,2]
[355190228,1740975060128,-500.0,0.00022739,2]
[355190229,1740975060139,-500.0,0.00022739,2]
[355190230,1740975060148,-228.23978349,0.00022739,2]
[355190231,1740975060158,-726.77,0.00022739,2]
[355190232,1740975060168,-500.0,0.00022739,2]
[355190233,1740975060178,-538.98,0.00022739,2]
[355190234,1740975060194,-776.48,0.00022739,2]
[355190235,1740975060204,-500.0,0.00022739,2]
[355190236,1740975060214,-1602.35,0.00022739,2]
[355190237,1740975060224,-500.0,0.00022739,2]
[355190238,1740975060234,-500.0,0.00022739,2]
[355190239,1740975060244,-408.25545997,0.00022739,2]
[355190240,1740975060253,-500.0,0.00022739,2]
[355190241,1740975060263,-654.85,0.00022739,2]
[355190242,1740975060272,-500.0,0.00022739,2]
[355190243,1740975060283,-648.92656828,0.00022739,2]
[355190244,1740975060292,-500.0,0.00022739,2]
[355190245,1740975060302,-607.09721769,0.00022739,2]
[355190246,1740975060311,-695.45,0.00022739,2]
[355190247,1740975060321,-516.422223,0.00022739,2]
[355190248,1740975060331,-500.0,0.00022739,2]
[355190249,1740975060341,-500.0,0.00022739,2]
[355190250,1740975060350,-500.0,0.00022739,2]
[355190251,1740975060360,-500.0,0.00022739,2]
[355190252,1740975060370,-500.0,0.00022739,2]
[355190253,1740975060380,-500.0,0.00022739,2]
[355190254,1740975060392,-500.0,0.00022739,2]
[355190255,1740975060402,-500.0,0.00022739,2]
[355190256,1740975060414,-500.0,0.00022739,2]
[355190257,1740975060424,-500.0,0.00022739,2]
[355190258,1740975060434,-500.0,0.00022739,2]
[355190259,1740975060444,-500.0,0.00022739,2]
[355190260,1740975060455,-500.0,0.00022739,2]
[355190261,1740975060467,-556.29,0.00022739,2]
[355190262,1740975060670,-15566.77,0.00022739,2]
[355190263,1740975060681,-2518.58,0.00022739,2]
[355190264,1740975060692,-500.0,0.00022739,2]
[355190265,1740975060702,-595.17,0.00022739,2]
[355190266,1740975060712,-500.0,0.00022739,2]
[355190267,1740975060722,-500.0,0.00022739,2]
[355190268,1740975060731,-500.0,0.00022739,2]
[355190269,1740975060745,-2098.01,0.00022739,2]
[355190270,1740975060754,-500.0,0.00022739,2]
[355190271,1740975060764,-500.0,0.00022739,2]
[355190272,1740975060774,-240.88261275,0.00022739,2]
[355190273,1740975060783,-500.0,0.00022739,2]
[355190274,1740975060793,-540.5,0.00022739,2]
[355190275,1740975060803,-500.0,0.00022739,2]
[355190276,1740975060812,-500.0,0.00022739,2]
[355190277,1740975060822,-500.0,0.00022739,2]
[355190278,1740975060831,-567.04,0.00022739,2]
[355190279,1740975060841,-500.0,0.00022739,2]
[355190280,1740975060850,-500.0,0.00022739,2]
[355190281,1740975060859,-500.0,0.00022739,2]
[355190282,1740975060868,-852.88,0.00022739,2]
[355190283,1740975060878,-500.0,0.00022739,2]
[355190284,1740975060887,-500.0,0.00022739,2]
[355190285,1740975060897,-323.77749377,0.00022739,2]
[355190286,1740975060906,-898.43,0.00022739,2]
[355190287,1740975060916,-500.0,0.00022739,2]
[355190288,1740975060926,-451.24698144,0.00022739,2]
[355190289,1740975060935,-1616.95,0.00022739,2]
[355190290,1740975060945,-500.0,0.00022739,2]
[355190291,1740975060954,-500.0,0.00022739,2]
[355190292,1740975060964,-500.0,0.00022739,2]
[355190293,1740975060974,-500.0,0.00022739,2]
[355190294,1740975060985,-515.6,0.00022739,2]
[355190295,1740975060995,-500.0,0.00022739,2]
[355190296,1740975061005,-500.0,0.00022739,2]
[355190297,1740975061014,-500.0,0.00022739,2]
[355190298,1740975061023,-500.0,0.00022739,2]
[355190299,1740975061033,-500.0,0.00022739,2]
[355190300,1740975061043,-500.0,0.00022739,2]
[355190301,1740975061052,-500.0,0.00022739,2]
[355190302,1740975061061,-500.0,0.00022739,2]
[355190303,1740975061071,-500.0,0.00022739,2]
[355190304,1740975061080,-500.0,0.00022739,2]
[355190305,1740975061090,-500.0,0.00022739,2]
[355190306,1740975061100,-500.0,0.00022739,2]
[355190307,1740975061110,-537.83,0.00022739,2]
[355190308,1740975061120,-500.0,0.00022739,2]
[355190309,1740975061130,-511.58,0.00022739,2]
[355190310,1740975061140,-500.0,0.00022739,2]
[355190311,1740975061149,-628.38,0.00022739,2]
[355190312,1740975061159,-500.0,0.00022739,2]
[355190313,1740975061169,-174.28962662,0.00022739,2]
[355190314,1740975061179,-500.0,0.00022739,2]
[355190315,1740975061189,-500.0,0.00022739,2]
[355190316,1740975061199,-500.0,0.00022739,2]
[355190317,1740975061210,-536.97,0.00022739,2]
[355190318,1740975061220,-500.0,0.00022739,2]
[355190319,1740975061229,-619.57,0.00022739,2]
[355190320,1740975061239,-500.0,0.00022739,2]
[355190321,1740975061249,-500.0,0.00022739,2]
[355190322,1740975061259,-500.0,0.00022739,2]
[355190323,1740975061268,-500.0,0.00022739,2]
[355190324,1740975061278,-500.0,0.00022739,2]
[355190325,1740975061287,-500.0,0.00022739,2]
[355190326,1740975061298,-500.0,0.00022739,2]
[355190327,1740975061307,-500.0,0.00022739,2]
[355190328,1740975061318,-35220.11,0.00022739,2]
[355190329,1740975061327,-500.0,0.00022739,2]
[355190330,1740975061337,-500.0,0.00022739,2]
[355190331,1740975061347,-500.0,0.00022739,2]
[355190332,1740975061357,-500.0,0.00022739,2]
[355190333,1740975061367,-500.0,0.00022739,2]
[355190334,1740975061381,-665.34,0.00022739,2]
[355190335,1740975061391,-500.0,0.00022739,2]
[355190336,1740975061401,-500.0,0.00022739,2]
[355190337,1740975061411,-500.0,0.00022739,2]
[355190338,1740975061421,-160.06110571,0.00022739,2]
[355190339,1740975061431,-500.0,0.00022739,2]
[355190340,1740975061440,-500.0,0.00022739,2]
[355190341,1740975061450,-500.0,0.00022739,2]
[355190342,1740975061461,-500.0,0.00022739,2]
[355190343,1740975061471,-500.0,0.00022739,2]
[355190344,1740975061480,-500.0,0.00022739,2]
[355190345,1740975061490,-500.0,0.00022739,2]
[355190346,1740975061500,-527.1437739,0.00022739,2]
[355190347,1740975061509,-500.0,0.00022739,2]
[355190348,1740975061519,-500.0,0.00022739,2]
[355190349,1740975061529,-500.0,0.00022739,2]
[355190350,1740975061539,-641.36607578,0.00022739,2]
[355190351,1740975061549,-500.0,0.00022739,2]
[355190352,1740975061559,-530.11291311,0.00022739,2]
[355190353,1740975061568,-500.0,0.00022739,2]
[355190354,1740975061578,-500.0,0.00022739,2]
[355190355,1740975061588,-500.0,0.00022739,2]
[355190356,1740975061597,-500.0,0.00022739,2]
[355190357,1740975061607,-500.0,0.00022739,2]
[355190358,1740975061616,-534.93612049,0.00022739,2]
[355190359,1740975061626,-569.0679642,0.00022739,2]
[355190360,1740975061636,-500.0,0.00022739,2]
[355190361,1740975061645,-500.0,0.00022739,2]
[355190362,1740975061654,-500.0,0.00022739,7]
[355190363,1740975061664,-500.0,0.00022739,2]
[355190364,1740975061674,-500.0,0.00022739,2]
[355190365,1740975061683,-500.0,0.00022739,2]
[355190366,1740975061693,-500.0,0.00022739,2]
[355190367,1740975061703,-525.90942158,0.00022739,2]
[355190368,1740975061712,-489.46747106,0.00022795,2]
[355190369,1740975061721,-9097.95362175,0.00022799,2]
[355190370,1740975061731,-489.46747106,0.00022904,2]
[355190371,1740975061741,-392.10380138,0.00022925,2]
[355190372,1740975061751,-203.0,0.0002293,2]
[355190373,1740975061761,-1812.95587726,0.0002295,2]
[355190374,1740975061770,-500.0,0.00023,2]
[355190375,1740975061780,-2000.0,0.00023,4]
[355190376,1740975061790,-2581.61,0.00023012,2]
[355190377,1740975061800,-568.51,0.00023013,2]
[355190378,1740975061809,-500.0,0.00023013,2]
[355190379,1740975061819,-582.1337657,0.00023013,2]
[355190380,1740975061828,-300.0,0.00023013,2]
[355190381,1740975061838,-500.0,0.00023013,2]
[355190382,1740975061848,-428.31997742,0.00023013,2]
[355190383,1740975061857,-152.335173,0.00023013,2]
[355190384,1740975061867,-500.0,0.00023013,2]
[355190385,1740975061876,-500.0,0.00023013,2]
[355190386,1740975061885,-165.164605,0.00023013,2]
[355190387,1740975061895,-500.0,0.00023013,2]
[355190388,1740975061904,-500.0,0.00023013,2]
[355190389,1740975061914,-500.0,0.00023013,2]
[355190390,1740975061923,-620.83346763,0.00023013,2]
[355190391,1740975061933,-500.0,0.00023013,2]
[355190392,1740975061943,-500.0,0.00023013,2]
[355190393,1740975061953,-500.0,0.00023013,2]
[355190394,1740975061962,-500.0,0.00023013,2]
[355190395,1740975061972,-500.0,0.00023013,2]
[355190396,1740975061981,-500.0,0.00023013,2]
[355190397,1740975061992,-500.0,0.00023013,2]
[355190398,1740975062001,-498.06657078,0.00023013,2]
[355190399,1740975062011,-5263.18,0.00023013,2]
[355190400,1740975062020,-228.68366176,0.00023013,2]
[355190401,1740975062029,-500.0,0.00023013,2]
[355190402,1740975062039,-500.0,0.00023013,2]
[355190403,1740975062048,-500.0,0.00023013,2]
[355190404,1740975062058,-630.03088492,0.00023013,2]
[355190405,1740975062067,-603.75240536,0.00023013,2]
[355190406,1740975062078,-222.15058009,0.00023013,2]
[355190407,1740975062088,-500.0,0.00023013,2]
[355190408,1740975062098,-500.0,0.00023013,2]
[355190409,1740975062107,-500.0,0.00023013,2]
[355190410,1740975062117,-500.0,0.00023013,2]
[355190411,1740975062127,-500.0,0.00023013,2]
[355190412,1740975062136,-500.0,0.00023013,2]
[355190413,1740975062146,-500.0,0.00023013,2]
[355190414,1740975062155,-500.0,0.00023013,2]
[355190415,1740975062166,-166.59793988,0.00023013,2]
[355190416,1740975062175,-500.0,0.00023013,2]
[355190417,1740975062185,-726.77,0.00023013,2]
[355190418,1740975062195,-500.0,0.00023013,2]
[355190419,1740975062206,-538.98,0.00023013,2]
[355190420,1740975062216,-776.48,0.00023013,2]
[355190421,1740975062225,-500.0,0.00023013,2]
[355190422,1740975062235,-1602.35,0.00023013,2]
[355190423,1740975062244,-383.8632358,0.00023013,2]
[355190424,1740975062254,-500.0,0.00023013,2]
[355190425,1740975062264,-290.55378671,0.00023013,2]
[355190426,1740975062274,-654.85,0.00023013,2]
[355190427,1740975062284,-500.0,0.00023013,2]
[355190428,1740975062294,-500.0,0.00023013,2]
[355190429,1740975062303,-695.45,0.00023013,2]
[355190430,1740975062312,-500.0,0.00023013,2]
[355190431,1740975062322,-500.0,0.00023013,2]
[355190432,1740975062331,-500.0,0.00023013,2]
[355190433,1740975062341,-500.0,0.00023013,2]
[355190434,1740975062350,-500.0,0.00023013,2]
[355190435,1740975062360,-500.0,0.00023013,2]
[355190436,1740975062370,-500.0,0.00023013,2]
[355190437,1740975062380,-500.0,0.00023013,2]
[355190438,1740975062393,-500.0,0.00023013,2]
[355190439,1740975062402,-500.0,0.00023013,2]
[355190440,1740975062411,-277.54051725,0.00023013,2]
[355190441,1740975062422,-500.0,0.00023013,2]
[355190442,1740975062432,-500.0,0.00023013,2]
[355190443,1740975062441,-556.29,0.00023013,2]
[355190444,1740975062450,-15566.77,0.00023013,2]
[355190445,1740975062461,-2518.58,0.00023013,2]
[355190446,1740975062471,-500.0,0.00023013,2]
[355190447,1740975062481,-595.17,0.00023013,2]
[355190448,1740975062491,-395.21328779,0.00023013,2]
[355190449,1740975062501,-500.0,0.00023013,2]
[355190450,1740975062511,-500.0,0.00023013,2]
[355190451,1740975062521,-2098.01,0.00023013,2]
[355190452,1740975062530,-247.19746456,0.00023013,2]
[355190453,1740975062540,-500.0,0.00023013,2]
[355190454,1740975062550,-500.0,0.00023013,2]
[355190455,1740975062560,-540.5,0.00023013,2]
[355190456,1740975062569,-186.09172398,0.00023013,2]
[355190457,1740975062579,-500.0,0.00023013,2]
[355190458,1740975062589,-500.0,0.00023013,2]
[355190459,1740975062599,-567.04,0.00023013,2]
[355190460,1740975062608,-500.0,0.00023013,2]
[355190461,1740975062618,-500.0,0.00023013,2]
[355190462,1740975062628,-500.0,0.00023013,2]
[355190463,1740975062638,-852.88,0.00023013,2]
[355190464,1740975062647,-500.0,0.00023013,2]
[355190465,1740975062657,-500.0,0.00023013,2]
[355190466,1740975062668,-898.43,0.00023013,2]
[355190467,1740975062679,-500.0,0.00023013,2]
[355190468,1740975062689,-1616.95,0.00023013,2]
[355190469,1740975062699,-500.0,0.00023013,2]
[355190470,1740975062709,-500.0,0.00023013,2]
[355190471,1740975062719,-500.0,0.00023013,2]
[355190472,1740975062729,-500.0,0.00023013,2]
[355190473,1740975062739,-515.6,0.00023013,2]
[355190474,1740975062750,-500.0,0.00023013,2]
[355190475,1740975062760,-500.0,0.00023013,2]
[355190476,1740975062769,-500.0,0.00023013,2]
[355190477,1740975062779,-500.0,0.00023013,2]
[355190478,1740975062789,-500.0,0.00023013,2]
[355190479,1740975062798,-500.0,0.00023013,2]
[355190480,1740975062807,-165.60718492,0.00023013,2]
[355190481,1740975062817,-500.0,0.00023013,2]
[355190482,1740975062827,-500.0,0.00023013,2]
[355190483,1740975062837,-203.34782983,0.00023013,2]
[355190484,1740975062846,-454.77834764,0.00023013,2]
[355190485,1740975062856,-500.0,0.00023013,2]
[355190486,1740975062866,-537.83,0.00023013,2]
[355190487,1740975062875,-500.0,0.00023013,2]
[355190488,1740975062885,-511.58,0.00023013,2]
[355190489,1740975062895,-500.0,0.00023013,2]
[355190490,1740975062904,-628.38,0.00023013,2]
[355190491,1740975062914,-365.24969194,0.00023013,2]
[355190492,1740975062923,-500.0,0.00023013,2]
[355190493,1740975062933,-500.0,0.00023013,2]
[355190494,1740975062942,-500.0,0.00023013,2]
[355190495,1740975062952,-536.97,0.00023013,2]
[355190496,1740975062961,-500.0,0.00023013,2]
[355190497,1740975062971,-619.57,0.00023013,2]
[355190498,1740975062980,-500.0,0.00023013,2]
[355190499,1740975062990,-500.0,0.00023013,2]
[355190500,1740975062999,-500.0,0.00023013,2]
[355190501,1740975063009,-500.0,0.00023013,2]
[355190502,1740975063019,-500.0,0.00023013,2]
[355190503,1740975063030,-500.0,0.00023013,2]
[355190504,1740975063040,-500.0,0.00023013,2]
[355190505,1740975063050,-500.0,0.00023013,2]
[355190506,1740975063060,-35220.11,0.00023013,2]
[355190507,1740975063070,-500.0,0.00023013,2]
[355190508,1740975063080,-500.0,0.00023013,2]
[355190509,1740975063090,-544.90319997,0.00023013,2]
[355190510,1740975063100,-500.0,0.00023013,2]
[355190511,1740975063110,-500.0,0.00023013,2]
[355190512,1740975063120,-665.34,0.00023013,2]
[355190513,1740975063130,-532.96619403,0.00023013,2]
[355190514,1740975063140,-500.0,0.00023013,2]
[355190515,1740975063150,-500.0,0.00023013,2]
[355190516,1740975063160,-500.0,0.00023013,2]
[355190517,1740975063170,-500.0,0.00023013,2]
[355190518,1740975063179,-500.0,0.00023013,2]
[355190519,1740975063190,-500.0,0.00023013,2]
[355190520,1740975063199,-500.0,0.00023013,2]
[355190521,1740975063209,-500.0,0.00023013,2]
[355190522,1740975063218,-500.0,0.00023013,2]
[355190523,1740975063228,-500.0,0.00023013,2]
[355190524,1740975063238,-632.52907806,0.00023013,2]
[355190525,1740975063248,-277.32580582,0.00023013,2]
[355190526,1740975063258,-500.0,0.00023013,2]
[355190527,1740975063268,-500.0,0.00023013,2]
[355190528,1740975063277,-280.0012453,0.00023013,2]
[355190529,1740975063287,-500.0,0.00023013,2]
[355190530,1740975063297,-541.38546522,0.00023013,2]
[355190531,1740975063307,-500.0,0.00023013,2]
[355190532,1740975063316,-163.30026955,0.00023013,2]
[355190533,1740975063326,-500.0,0.00023013,2]
[355190534,1740975063335,-500.0,0.00023013,7]
[355190535,1740975063346,-500.0,0.00023013,2]
[355190536,1740975063355,-500.0,0.00023013,2]
[355190537,1740975063365,-500.0,0.00023013,2]
[355190538,1740975063378,-500.0,0.00023013,2]
[355190539,1740975063387,-489.46747106,0.00023014,2]
[355190540,1740975063397,-151.0,0.00023014,2]
[355190541,1740975063407,-489.46747106,0.00023123,2]
[355190542,1740975063418,-489.46747106,0.00023205,2]
[355190543,1740975063427,-202.0,0.0002322,2]
[355190544,1740975063436,-2581.61,0.00023286,2]
[355190545,1740975063446,-3000.0,0.00023287,2]
[355190546,1740975063457,-568.51,0.00023287,2]
[355190547,1740975063467,-368.34297147,0.00023287,2]
[355190548,1740975063476,-300.0,0.00023287,2]
[355190549,1740975063487,-500.0,0.00023287,2]
[355190550,1740975063497,-152.335173,0.00023287,2]
[355190551,1740975063508,-500.0,0.00023287,2]
[355190552,1740975063518,-417.07037846,0.00023287,2]
[355190553,1740975063528,-165.164605,0.00023287,2]
[355190554,1740975063538,-500.0,0.00023287,2]
[355190555,1740975063548,-251.22641905,0.00023287,2]
[355190556,1740975063558,-427.53883394,0.00023287,2]
[355190557,1740975063568,-263.58505737,0.00023287,2]
[355190558,1740975063578,-500.0,0.00023287,2]
[355190559,1740975063588,-500.0,0.00023287,2]
[355190560,1740975063598,-500.0,0.00023287,2]
[355190561,1740975063609,-500.0,0.00023287,2]
[355190562,1740975063618,-500.0,0.00023287,2]
[355190563,1740975063629,-500.0,0.00023287,2]
[355190564,1740975063639,-5263.18,0.00023287,2]
[355190565,1740975063649,-500.0,0.00023287,2]
[355190566,1740975063659,-500.0,0.00023287,2]
[355190567,1740975063669,-500.0,0.00023287,2]
[355190568,1740975063679,-536.55088323,0.00023287,2]
[355190569,1740975063690,-500.0,0.00023287,2]
[355190570,1740975063700,-195.00655585,0.00023287,2]
[355190571,1740975063711,-500.0,0.00023287,2]
[355190572,1740975063721,-500.0,0.00023287,2]
[355190573,1740975063731,-500.0,0.00023287,2]
[355190574,1740975063743,-632.85346667,0.00023287,2]
[355190575,1740975063753,-500.0,0.00023287,2]
[355190576,1740975063955,-500.0,0.00023287,2]
[355190577,1740975063966,-726.77,0.00023287,2]
[355190578,1740975063977,-500.0,0.00023287,2]
[355190579,1740975063988,-538.98,0.00023287,2]
[355190580,1740975063999,-776.48,0.00023287,2]
[355190581,1740975064010,-500.0,0.00023287,2]
[355190582,1740975064020,-1602.35,0.00023287,2]
[355190583,1740975064031,-372.67429532,0.00023287,2]
[355190584,1740975064041,-654.85,0.00023287,2]
[355190585,1740975064051,-500.0,0.00023287,2]
[355190586,1740975064061,-500.0,0.00023287,2]
[355190587,1740975064071,-695.45,0.00023287,2]
[355190588,1740975064083,-500.0,0.00023287,2]
[355190589,1740975064093,-500.0,0.00023287,2]
[355190590,1740975064103,-500.0,0.00023287,2]
[355190591,1740975064113,-500.0,0.00023287,2]
[355190592,1740975064124,-500.0,0.00023287,2]
[355190593,1740975064135,-500.0,0.00023287,2]
[355190594,1740975064147,-500.0,0.00023287,2]
[355190595,1740975064158,-500.0,0.00023287,2]
[355190596,1740975064169,-500.0,0.00023287,2]
[355190597,1740975064180,-500.0,0.00023287,2]
[355190598,1740975064190,-500.0,0.00023287,2]
[355190599,1740975064201,-500.0,0.00023287,2]
[355190600,1740975064211,-556.29,0.00023287,2]
[355190601,1740975064221,-15566.77,0.00023287,2]
[355190602,1740975064232,-2518.58,0.00023287,2]
[355190603,1740975064242,-500.0,0.00023287,2]
[355190604,1740975064252,-595.17,0.00023287,2]
[355190605,1740975064263,-479.60667032,0.00023287,2]
[355190606,1740975064273,-318.77794865,0.00023287,2]
[355190607,1740975064283,-2098.01,0.00023287,2]
[355190608,1740975064293,-500.0,0.00023287,2]
[355190609,1740975064303,-500.0,0.00023287,2]
[355190610,1740975064313,-540.5,0.00023287,2]
[355190611,1740975064323,-271.12292,0.00023287,2]
[355190612,1740975064333,-442.88680241,0.00023287,2]
[355190613,1740975064344,-567.04,0.00023287,2]
[355190614,1740975064354,-500.0,0.00023287,2]
[355190615,1740975064363,-500.0,0.00023287,2]
[355190616,1740975064374,-500.0,0.00023287,2]
[355190617,1740975064387,-852.88,0.00023287,2]
[355190618,1740975064398,-500.0,0.00023287,2]
[355190619,1740975064408,-500.0,0.00023287,2]
[355190620,1740975064419,-898.43,0.00023287,2]
[355190621,1740975064431,-500.0,0.00023287,2]
[355190622,1740975064441,-1616.95,0.00023287,2]
[355190623,1740975064452,-500.0,0.00023287,2]
[355190624,1740975064462,-500.0,0.00023287,2]
[355190625,1740975064473,-500.0,0.00023287,2]
[355190626,1740975064483,-500.0,0.00023287,2]
[355190627,1740975064494,-515.6,0.00023287,2]
[355190628,1740975064503,-500.0,0.00023287,2]
[355190629,1740975064513,-500.0,0.00023287,2]
[355190630,1740975064523,-500.0,0.00023287,2]
[355190631,1740975064532,-500.0,0.00023287,2]
[355190632,1740975064542,-500.0,0.00023287,2]
[355190633,1740975064552,-500.0,0.00023287,2]
[355190634,1740975064562,-500.0,0.00023287,2]
[355190635,1740975064573,-500.0,0.00023287,2]
[355190636,1740975064585,-500.0,0.00023287,2]
[355190637,1740975064596,-537.83,0.00023287,2]
[355190638,1740975064607,-500.0,0.00023287,2]
[355190639,1740975064618,-511.58,0.00023287,2]
[355190640,1740975064629,-500.0,0.00023287,2]
[355190641,1740975064639,-628.38,0.00023287,2]
[355190642,1740975064650,-482.54994131,0.00023287,2]
[355190643,1740975064660,-308.64867605,0.00023287,2]
[355190644,1740975064670,-500.0,0.00023287,2]
[355190645,1740975064679,-536.97,0.00023287,2]
[355190646,1740975064689,-500.0,0.00023287,2]
[355190647,1740975064699,-619.57,0.00023287,2]